[Event "Titled Tuesday Blitz August 10 2021"]
[White "Priasmoro, Novendra"]
[Black "Le, Tuan Minh"]
[WhiteFideId "7105029"]
[BlackFideId "12401153"]
[WhiteElo "2309"]
[BlackElo "2450"]
[Result "0-1"]
[Round "08"]
[TimeControl "180+1"]
[Date "2021.08.10"]
[WhiteClock "0:01:02"]
[BlackClock "0:01:39"]

1. e4 {[%clk 0:03:00]}  c5 {[%clk 0:02:58]} 2. Nf3 {[%clk 0:03:01]}  Nf6 {[%clk 0:02:59]} 3. e5 {[%clk 0:02:58]}  Nd5 {[%clk 0:02:59]} 4. Nc3 {[%clk 0:02:58]}  e6 {[%clk 0:03:00]} 5. Nxd5 {[%clk 0:02:55]}  exd5 {[%clk 0:03:01]} 6. g3 {[%clk 0:02:52]}  Nc6 {[%clk 0:03:01]} 7. Bg2 {[%clk 0:02:53]}  d6 {[%clk 0:03:02]} 8. exd6 {[%clk 0:02:54]}  Bxd6 {[%clk 0:03:03]} 9. O-O {[%clk 0:02:54]}  O-O {[%clk 0:03:04]} 10. d4 {[%clk 0:02:54]}  Bg4 {[%clk 0:03:04]} 11. c3 {[%clk 0:02:49]}  cxd4 {[%clk 0:03:03]} 12. cxd4 {[%clk 0:02:49]}  Qf6 {[%clk 0:03:03]} 13. Be3 {[%clk 0:02:38]}  Rfe8 {[%clk 0:02:59]} 14. h3 {[%clk 0:02:37]}  Bh5 {[%clk 0:02:55]} 15. g4 {[%clk 0:02:36]}  Bg6 {[%clk 0:02:55]} 16. Bg5 {[%clk 0:02:21]}  Qe6 {[%clk 0:02:55]} 17. Re1 {[%clk 0:02:16]}  Qd7 {[%clk 0:02:45]} 18. Be3 {[%clk 0:02:09]}  Rac8 {[%clk 0:02:39]} 19. Rc1 {[%clk 0:02:04]}  h6 {[%clk 0:02:31]} 20. a3 {[%clk 0:02:04]}  Be4 {[%clk 0:02:28]} 21. Qd2 {[%clk 0:01:52]}  h5 {[%clk 0:02:11]} 22. Ne5 {[%clk 0:01:26]}  Bxe5 {[%clk 0:02:05]} 23. Bxe4 {[%clk 0:01:18]}  dxe4 {[%clk 0:01:45]} 24. dxe5 {[%clk 0:01:18]}  Qxd2 {[%clk 0:01:45]} 25. Bxd2 {[%clk 0:01:19]}  Nxe5 {[%clk 0:01:46]} 26. Rxc8 {[%clk 0:01:05]}  Nf3+ {[%clk 0:01:39]} 27. Kf1 {[%clk 0:01:01]}  Rxc8 {[%clk 0:01:39]} 28. Ke2 {[%clk 0:01:02]}  Nxe1 {[%clk 0:01:39]} 0-1


[Site "https://www.chess.com"]

[Event "Titled Tuesday Blitz August 10 2021"]
[White "Sevian, Samuel"]
[Black "Quparadze, Giga"]
[WhiteFideId "2040506"]
[BlackFideId "13602250"]
[WhiteElo "2984"]
[BlackElo "2658"]
[Result "1-0"]
[Round "08"]
[TimeControl "180+1"]
[Date "2021.08.10"]
[WhiteClock "0:01:19"]
[BlackClock "0:01:15"]

1. e4 {[%clk 0:03:00]}  c5 {[%clk 0:02:59]} 2. Nf3 {[%clk 0:03:01]}  a6 {[%clk 0:02:59]} 3. c3 {[%clk 0:02:50]}  d5 {[%clk 0:02:58]} 4. exd5 {[%clk 0:02:51]}  Qxd5 {[%clk 0:02:59]} 5. d4 {[%clk 0:02:52]}  Nc6 {[%clk 0:02:57]} 6. Be3 {[%clk 0:02:51]}  cxd4 {[%clk 0:02:56]} 7. cxd4 {[%clk 0:02:51]}  e6 {[%clk 0:02:56]} 8. Nc3 {[%clk 0:02:51]}  Qd8 {[%clk 0:02:56]} 9. Bd3 {[%clk 0:02:50]}  Nf6 {[%clk 0:02:56]} 10. O-O {[%clk 0:02:51]}  Bd6 {[%clk 0:02:55]} 11. a3 {[%clk 0:02:51]}  O-O {[%clk 0:02:55]} 12. Bc2 {[%clk 0:02:52]}  Ne7 {[%clk 0:02:55]} 13. Ne5 {[%clk 0:02:49]}  Ned5 {[%clk 0:02:53]} 14. Nxd5 {[%clk 0:02:43]}  Nxd5 {[%clk 0:02:51]} 15. Qd3 {[%clk 0:02:40]}  f5 {[%clk 0:02:46]} 16. Bd2 {[%clk 0:02:38]}  b5 {[%clk 0:02:43]} 17. Rfe1 {[%clk 0:02:36]}  Bb7 {[%clk 0:02:42]} 18. Bb3 {[%clk 0:02:35]}  Bxe5 {[%clk 0:02:37]} 19. Rxe5 {[%clk 0:02:33]}  Nc7 {[%clk 0:02:37]} 20. Ba5 {[%clk 0:02:31]}  Qd7 {[%clk 0:02:32]} 21. Bxc7 {[%clk 0:02:24]}  Qxc7 {[%clk 0:02:33]} 22. Bxe6+ {[%clk 0:02:24]}  Kh8 {[%clk 0:02:33]} 23. Bxf5 {[%clk 0:02:24]}  h6 {[%clk 0:02:22]} 24. Rae1 {[%clk 0:02:22]}  Rad8 {[%clk 0:02:21]} 25. Re7 {[%clk 0:02:14]}  Qf4 {[%clk 0:02:20]} 26. Rxb7 {[%clk 0:01:38]}  Rxd4 {[%clk 0:02:18]} 27. Rf7 {[%clk 0:01:26]}  Rdd8 {[%clk 0:01:24]} 28. Rxf8+ {[%clk 0:01:18]}  Rxf8 {[%clk 0:01:25]} 29. g4 {[%clk 0:01:19]}  g6 {[%clk 0:01:15]} 30. Qc3+ {[%clk 0:01:18]}  Kg8 {[%clk 0:01:15]} 31. Re7 {[%clk 0:01:19]} 1-0


[Site "https://www.chess.com"]

[Event "Titled Tuesday Blitz August 10 2021"]
[White "Timofeev, Artyom"]
[Black "Timmermans, Mark"]
[WhiteFideId "4140419"]
[BlackFideId "1026399"]
[WhiteElo "2582"]
[BlackElo "2460"]
[Result "1-0"]
[Round "08"]
[TimeControl "180+1"]
[Date "2021.08.10"]
[WhiteClock "0:00:29"]
[BlackClock "0:00:15"]

1. c4 {[%clk 0:03:00]}  Nf6 {[%clk 0:02:59]} 2. Nc3 {[%clk 0:03:00]}  e5 {[%clk 0:02:57]} 3. e3 {[%clk 0:03:00]}  Be7 {[%clk 0:02:41]} 4. Nf3 {[%clk 0:02:59]}  d6 {[%clk 0:02:33]} 5. d4 {[%clk 0:02:56]}  exd4 {[%clk 0:02:34]} 6. Nxd4 {[%clk 0:02:56]}  O-O {[%clk 0:02:30]} 7. Be2 {[%clk 0:02:55]}  Nc6 {[%clk 0:02:27]} 8. Nxc6 {[%clk 0:02:50]}  bxc6 {[%clk 0:02:28]} 9. O-O {[%clk 0:02:50]}  a5 {[%clk 0:02:23]} 10. Bf3 {[%clk 0:02:49]}  Qe8 {[%clk 0:02:16]} 11. b3 {[%clk 0:02:48]}  h6 {[%clk 0:02:09]} 12. Bb2 {[%clk 0:02:46]}  Rb8 {[%clk 0:02:05]} 13. Qd2 {[%clk 0:02:45]}  Bg4 {[%clk 0:01:58]} 14. Qe2 {[%clk 0:02:39]}  Bxf3 {[%clk 0:01:58]} 15. Qxf3 {[%clk 0:02:39]}  c5 {[%clk 0:01:39]} 16. Rfe1 {[%clk 0:02:33]}  Rb6 {[%clk 0:01:39]} 17. e4 {[%clk 0:02:24]}  Qd7 {[%clk 0:01:31]} 18. Rad1 {[%clk 0:02:16]}  Qc6 {[%clk 0:01:10]} 19. Qg3 {[%clk 0:01:54]}  Re8 {[%clk 0:00:43]} 20. Nd5 {[%clk 0:01:49]}  Kh7 {[%clk 0:00:43]} 21. Nxb6 {[%clk 0:01:43]}  Qxb6 {[%clk 0:00:44]} 22. e5 {[%clk 0:01:39]}  dxe5 {[%clk 0:00:38]} 23. Bxe5 {[%clk 0:01:39]}  Rc8 {[%clk 0:00:29]} 24. Qh3 {[%clk 0:01:31]}  Qb7 {[%clk 0:00:16]} 25. Qf5+ {[%clk 0:01:21]}  Kg8 {[%clk 0:00:15]} 26. Bxf6 {[%clk 0:01:21]}  Bxf6 {[%clk 0:00:15]} 27. Qxc5 {[%clk 0:01:21]}  Bc3 {[%clk 0:00:10]} 28. Re2 {[%clk 0:01:18]}  Bb4 {[%clk 0:00:11]} 29. Qb5 {[%clk 0:01:13]}  Qa8 {[%clk 0:00:10]} 30. Qd7 {[%clk 0:01:04]}  c5 {[%clk 0:00:09]} 31. Re7 {[%clk 0:00:56]}  Rf8 {[%clk 0:00:10]} 32. Rd3 {[%clk 0:00:52]}  a4 {[%clk 0:00:07]} 33. Qxa4 {[%clk 0:00:46]}  Qxa4 {[%clk 0:00:07]} 34. bxa4 {[%clk 0:00:46]}  Ra8 {[%clk 0:00:08]} 35. g3 {[%clk 0:00:42]}  Rxa4 {[%clk 0:00:09]} 36. Rd8+ {[%clk 0:00:42]}  Kh7 {[%clk 0:00:10]} 37. Rxf7 {[%clk 0:00:42]}  Rxa2 {[%clk 0:00:10]} 38. Rdd7 {[%clk 0:00:32]}  Bc3 {[%clk 0:00:10]} 39. Rf4 {[%clk 0:00:33]}  Bd4 {[%clk 0:00:10]} 40. Rfxd4 {[%clk 0:00:32]}  cxd4 {[%clk 0:00:11]} 41. Rxd4 {[%clk 0:00:33]}  Rc2 {[%clk 0:00:12]} 42. Kg2 {[%clk 0:00:33]}  g5 {[%clk 0:00:12]} 43. Kf3 {[%clk 0:00:33]}  Kg6 {[%clk 0:00:12]} 44. Ke3 {[%clk 0:00:33]}  h5 {[%clk 0:00:13]} 45. h4 {[%clk 0:00:33]}  g4 {[%clk 0:00:13]} 46. Rd6+ {[%clk 0:00:29]}  Kg7 {[%clk 0:00:13]} 47. Rd5 {[%clk 0:00:29]}  Kg6 {[%clk 0:00:13]} 48. Rg5+ {[%clk 0:00:29]}  Kh6 {[%clk 0:00:13]} 49. c5 {[%clk 0:00:29]}  Rc3+ {[%clk 0:00:13]} 50. Kd4 {[%clk 0:00:29]}  Rf3 {[%clk 0:00:13]} 51. c6 {[%clk 0:00:29]}  Rxf2 {[%clk 0:00:14]} 52. Rc5 {[%clk 0:00:28]}  Rd2+ {[%clk 0:00:14]} 53. Ke5 {[%clk 0:00:28]}  Rd8 {[%clk 0:00:15]} 54. c7 {[%clk 0:00:28]}  Rc8 {[%clk 0:00:15]} 55. Kd6 {[%clk 0:00:29]} 1-0


[Site "https://www.chess.com"]

[Event "Titled Tuesday Blitz August 10 2021"]
[White "Urazayev, Arystanbek"]
[Black "Maze, Sebastien"]
[WhiteFideId "13709810"]
[BlackFideId "613762"]
[WhiteElo "2321"]
[BlackElo "2462"]
[Result "0-1"]
[Round "08"]
[TimeControl "180+1"]
[Date "2021.08.10"]
[WhiteClock "0:00:34"]
[BlackClock "0:00:19"]

1. d4 {[%clk 0:03:00]}  Nf6 {[%clk 0:02:59]} 2. c4 {[%clk 0:03:01]}  g6 {[%clk 0:02:58]} 3. Nc3 {[%clk 0:03:01]}  Bg7 {[%clk 0:02:59]} 4. e4 {[%clk 0:03:02]}  O-O {[%clk 0:03:00]} 5. Be2 {[%clk 0:03:02]}  d6 {[%clk 0:03:00]} 6. h4 {[%clk 0:03:03]}  h5 {[%clk 0:02:53]} 7. Bg5 {[%clk 0:03:03]}  Nbd7 {[%clk 0:02:47]} 8. Nf3 {[%clk 0:03:02]}  e5 {[%clk 0:02:46]} 9. dxe5 {[%clk 0:02:57]}  dxe5 {[%clk 0:02:44]} 10. Qd2 {[%clk 0:02:57]}  c6 {[%clk 0:02:40]} 11. O-O-O {[%clk 0:02:56]}  Qc7 {[%clk 0:02:37]} 12. Kb1 {[%clk 0:02:50]}  Re8 {[%clk 0:02:36]} 13. Bh6 {[%clk 0:02:40]}  Bxh6 {[%clk 0:02:28]} 14. Qxh6 {[%clk 0:02:40]}  Ng4 {[%clk 0:02:29]} 15. Qc1 {[%clk 0:02:31]}  Nxf2 {[%clk 0:02:28]} 16. Qh6 {[%clk 0:02:22]}  Nxh1 {[%clk 0:02:10]} 17. Rxh1 {[%clk 0:01:47]}  Nf8 {[%clk 0:02:09]} 18. c5 {[%clk 0:01:39]}  f6 {[%clk 0:01:48]} 19. Rd1 {[%clk 0:01:22]}  Be6 {[%clk 0:01:42]} 20. Rd6 {[%clk 0:01:12]}  Rad8 {[%clk 0:01:38]} 21. Qd2 {[%clk 0:01:09]}  Rxd6 {[%clk 0:01:30]} 22. cxd6 {[%clk 0:01:10]}  Qd7 {[%clk 0:01:28]} 23. Qe3 {[%clk 0:01:05]}  b6 {[%clk 0:01:22]} 24. Nd2 {[%clk 0:01:05]}  Qxd6 {[%clk 0:01:21]} 25. a3 {[%clk 0:01:02]}  Rd8 {[%clk 0:01:20]} 26. Nf3 {[%clk 0:01:00]}  Kg7 {[%clk 0:01:16]} 27. Ka1 {[%clk 0:00:59]}  Bg4 {[%clk 0:01:15]} 28. Bc4 {[%clk 0:00:58]}  Ne6 {[%clk 0:01:14]} 29. Nh2 {[%clk 0:00:53]}  Qd4 {[%clk 0:01:04]} 30. Nxg4 {[%clk 0:00:54]}  hxg4 {[%clk 0:01:04]} 31. Qe2 {[%clk 0:00:54]}  Nf4 {[%clk 0:01:03]} 32. Qf1 {[%clk 0:00:55]}  g3 {[%clk 0:01:02]} 33. Bb3 {[%clk 0:00:54]}  Qf2 {[%clk 0:01:01]} 34. Qc4 {[%clk 0:00:54]}  Rf8 {[%clk 0:00:53]} 35. Qxc6 {[%clk 0:00:54]}  Qxg2 {[%clk 0:00:43]} 36. Qd7+ {[%clk 0:00:54]}  Kh6 {[%clk 0:00:43]} 37. Qe7 {[%clk 0:00:55]}  Qg1+ {[%clk 0:00:44]} 38. Ka2 {[%clk 0:00:45]}  Qc5 {[%clk 0:00:44]} 39. Qd7 {[%clk 0:00:42]}  g2 {[%clk 0:00:41]} 40. h5 {[%clk 0:00:42]}  g1=Q {[%clk 0:00:39]} 41. hxg6 {[%clk 0:00:43]}  Qxg6 {[%clk 0:00:38]} 42. Qxa7 {[%clk 0:00:40]}  Qg2 {[%clk 0:00:28]} 43. Na4 {[%clk 0:00:40]}  Nd3 {[%clk 0:00:21]} 44. Qd7 {[%clk 0:00:34]}  Qd4 {[%clk 0:00:19]} 0-1


[Site "https://www.chess.com"]

[Event "Titled Tuesday Blitz August 10 2021"]
[White "Yakubboev, Nodirbek"]
[Black "Lagno, Kateryna"]
[WhiteFideId "14203987"]
[BlackFideId "14109336"]
[WhiteElo "2519"]
[BlackElo "2608"]
[Result "1-0"]
[Round "08"]
[TimeControl "180+1"]
[Date "2021.08.10"]
[WhiteClock "0:00:04"]
[BlackClock "0:00:04"]

1. b3 {[%clk 0:03:00]}  Nf6 {[%clk 0:02:59]} 2. Bb2 {[%clk 0:03:00]}  g6 {[%clk 0:03:00]} 3. g3 {[%clk 0:03:00]}  Bg7 {[%clk 0:02:59]} 4. Bg2 {[%clk 0:03:00]}  d6 {[%clk 0:02:58]} 5. d4 {[%clk 0:03:00]}  d5 {[%clk 0:02:55]} 6. Nf3 {[%clk 0:02:57]}  O-O {[%clk 0:02:55]} 7. O-O {[%clk 0:02:49]}  c6 {[%clk 0:02:55]} 8. c4 {[%clk 0:02:48]}  a5 {[%clk 0:02:55]} 9. Nc3 {[%clk 0:02:47]}  Bf5 {[%clk 0:02:54]} 10. Nd2 {[%clk 0:02:41]}  h5 {[%clk 0:02:43]} 11. Re1 {[%clk 0:02:37]}  h4 {[%clk 0:02:39]} 12. Rc1 {[%clk 0:02:24]}  h3 {[%clk 0:02:27]} 13. Bh1 {[%clk 0:02:23]}  Bh6 {[%clk 0:02:22]} 14. e3 {[%clk 0:02:18]}  Na6 {[%clk 0:02:12]} 15. a3 {[%clk 0:02:13]}  Nc7 {[%clk 0:02:07]} 16. Na4 {[%clk 0:02:01]}  Ne6 {[%clk 0:01:54]} 17. f3 {[%clk 0:01:51]}  Ng5 {[%clk 0:01:43]} 18. Qe2 {[%clk 0:01:48]}  Re8 {[%clk 0:01:36]} 19. cxd5 {[%clk 0:01:25]}  cxd5 {[%clk 0:01:33]} 20. Nc3 {[%clk 0:01:18]}  Rc8 {[%clk 0:01:30]} 21. Nb5 {[%clk 0:01:17]}  Qd7 {[%clk 0:01:25]} 22. a4 {[%clk 0:01:14]}  Rxc1 {[%clk 0:01:24]} 23. Rxc1 {[%clk 0:01:14]}  Rc8 {[%clk 0:01:24]} 24. Qf1 {[%clk 0:01:10]}  b6 {[%clk 0:01:19]} 25. Kf2 {[%clk 0:01:05]}  Rc6 {[%clk 0:01:10]} 26. Rxc6 {[%clk 0:01:01]}  Qxc6 {[%clk 0:01:10]} 27. Qc1 {[%clk 0:01:02]}  Qe6 {[%clk 0:01:07]} 28. Qc3 {[%clk 0:00:56]}  Kh7 {[%clk 0:00:46]} 29. Ba3 {[%clk 0:00:53]}  Kg7 {[%clk 0:00:39]} 30. Nc7 {[%clk 0:00:50]}  Qd7 {[%clk 0:00:39]} 31. Nb5 {[%clk 0:00:49]}  Qe6 {[%clk 0:00:39]} 32. Nf1 {[%clk 0:00:31]}  Bg4 {[%clk 0:00:32]} 33. Qc2 {[%clk 0:00:26]}  Bf5 {[%clk 0:00:29]} 34. Qc7 {[%clk 0:00:16]}  Nd7 {[%clk 0:00:24]} 35. Qc3 {[%clk 0:00:07]}  Nf6 {[%clk 0:00:23]} 36. Qc7 {[%clk 0:00:07]}  Nd7 {[%clk 0:00:24]} 37. g4 {[%clk 0:00:07]}  Bd3 {[%clk 0:00:24]} 38. Bc1 {[%clk 0:00:06]}  Nf6 {[%clk 0:00:20]} 39. Ng3 {[%clk 0:00:06]}  Nxg4+ {[%clk 0:00:15]} 40. fxg4 {[%clk 0:00:06]}  Qxg4 {[%clk 0:00:16]} 41. Qe5+ {[%clk 0:00:05]}  Kg8 {[%clk 0:00:14]} 42. Nc3 {[%clk 0:00:04]}  e6 {[%clk 0:00:09]} 43. Qb8+ {[%clk 0:00:04]}  Kg7 {[%clk 0:00:09]} 44. Qe5+ {[%clk 0:00:03]}  Kg8 {[%clk 0:00:09]} 45. Ba3 {[%clk 0:00:04]}  Bc2 {[%clk 0:00:07]} 46. Be7 {[%clk 0:00:03]}  Bxb3 {[%clk 0:00:04]} 47. Qb8+ {[%clk 0:00:02]}  Kh7 {[%clk 0:00:03]} 48. Bf6 {[%clk 0:00:02]}  Bg7 {[%clk 0:00:03]} 49. Bxg7 {[%clk 0:00:03]}  Kxg7 {[%clk 0:00:04]} 50. Qxb6 {[%clk 0:00:03]}  Bc4 {[%clk 0:00:04]} 51. Qxa5 {[%clk 0:00:03]}  Nh7 {[%clk 0:00:01]} 52. Qc7 {[%clk 0:00:03]}  Nf6 {[%clk 0:00:02]} 53. Qf4 {[%clk 0:00:03]}  Qxf4+ {[%clk 0:00:01]} 54. exf4 {[%clk 0:00:04]}  Ng4+ {[%clk 0:00:01]} 55. Kg1 {[%clk 0:00:05]}  Ne3 {[%clk 0:00:02]} 56. Bf3 {[%clk 0:00:04]}  Kf6 {[%clk 0:00:02]} 57. Be2 {[%clk 0:00:04]}  Bxe2 {[%clk 0:00:02]} 58. Ngxe2 {[%clk 0:00:04]}  Nc4 {[%clk 0:00:03]} 59. Kf2 {[%clk 0:00:04]}  Kf5 {[%clk 0:00:03]} 60. Kf3 {[%clk 0:00:04]}  f6 {[%clk 0:00:04]} 61. Ng3# {[%clk 0:00:04]} 1-0


[Site "https://www.chess.com"]

[Event "Titled Tuesday Blitz August 10 2021"]
[White "Andreikin, Dmitry"]
[Black "Bologan, Victor"]
[WhiteFideId "4158814"]
[BlackFideId "13900048"]
[WhiteElo "2782"]
[BlackElo "2511"]
[Result "1-0"]
[Round "09"]
[TimeControl "180+1"]
[Date "2021.08.10"]
[WhiteClock "0:00:06"]
[BlackClock "0:00:01"]

1. Nf3 {[%clk 0:03:00]}  d5 {[%clk 0:02:56]} 2. e3 {[%clk 0:03:00]}  c6 {[%clk 0:02:55]} 3. c4 {[%clk 0:02:59]}  Nf6 {[%clk 0:02:55]} 4. Nc3 {[%clk 0:02:59]}  a6 {[%clk 0:02:54]} 5. d4 {[%clk 0:02:57]}  Bg4 {[%clk 0:02:53]} 6. h3 {[%clk 0:02:56]}  Bxf3 {[%clk 0:02:53]} 7. Qxf3 {[%clk 0:02:56]}  e6 {[%clk 0:02:52]} 8. Bd3 {[%clk 0:02:57]}  Bb4 {[%clk 0:02:51]} 9. O-O {[%clk 0:02:57]}  O-O {[%clk 0:02:50]} 10. Rd1 {[%clk 0:02:56]}  Nbd7 {[%clk 0:02:49]} 11. Bd2 {[%clk 0:02:56]}  a5 {[%clk 0:02:34]} 12. a3 {[%clk 0:02:50]}  Bd6 {[%clk 0:02:29]} 13. e4 {[%clk 0:02:45]}  dxe4 {[%clk 0:02:27]} 14. Nxe4 {[%clk 0:02:46]}  Nxe4 {[%clk 0:02:27]} 15. Qxe4 {[%clk 0:02:47]}  g6 {[%clk 0:02:26]} 16. Bc3 {[%clk 0:02:38]}  Re8 {[%clk 0:02:25]} 17. g3 {[%clk 0:02:22]}  Bf8 {[%clk 0:02:24]} 18. h4 {[%clk 0:02:17]}  Bg7 {[%clk 0:02:23]} 19. Bf1 {[%clk 0:02:13]}  Qc7 {[%clk 0:02:19]} 20. h5 {[%clk 0:02:06]}  Nf6 {[%clk 0:02:17]} 21. Qe5 {[%clk 0:02:06]}  Qxe5 {[%clk 0:02:00]} 22. dxe5 {[%clk 0:02:07]}  Ne4 {[%clk 0:01:57]} 23. Bd4 {[%clk 0:01:59]}  gxh5 {[%clk 0:01:44]} 24. Bg2 {[%clk 0:01:54]}  f5 {[%clk 0:01:39]} 25. exf6 {[%clk 0:01:47]}  Nxf6 {[%clk 0:01:38]} 26. b4 {[%clk 0:01:38]}  e5 {[%clk 0:01:36]} 27. Bb6 {[%clk 0:01:36]}  axb4 {[%clk 0:01:33]} 28. axb4 {[%clk 0:01:37]}  Rxa1 {[%clk 0:01:30]} 29. Rxa1 {[%clk 0:01:38]}  e4 {[%clk 0:01:20]} 30. Ra7 {[%clk 0:01:37]}  Re7 {[%clk 0:01:18]} 31. Bd8 {[%clk 0:01:08]}  Rd7 {[%clk 0:01:06]} 32. Bxf6 {[%clk 0:01:08]}  Bxf6 {[%clk 0:01:06]} 33. Bxe4 {[%clk 0:01:08]}  h4 {[%clk 0:00:55]} 34. Kg2 {[%clk 0:01:04]}  Re7 {[%clk 0:00:52]} 35. Bf5 {[%clk 0:00:42]}  hxg3 {[%clk 0:00:51]} 36. fxg3 {[%clk 0:00:42]}  Kg7 {[%clk 0:00:50]} 37. c5 {[%clk 0:00:40]}  Bc3 {[%clk 0:00:45]} 38. b5 {[%clk 0:00:39]}  Kf6 {[%clk 0:00:42]} 39. Bc8 {[%clk 0:00:23]}  cxb5 {[%clk 0:00:31]} 40. Bxb7 {[%clk 0:00:23]}  b4 {[%clk 0:00:23]} 41. Ra6+ {[%clk 0:00:21]}  Ke5 {[%clk 0:00:22]} 42. Rb6 {[%clk 0:00:18]}  Bd4 {[%clk 0:00:19]} 43. Rb5 {[%clk 0:00:16]}  b3 {[%clk 0:00:15]} 44. c6+ {[%clk 0:00:13]}  Kd6 {[%clk 0:00:13]} 45. Rxb3 {[%clk 0:00:14]}  Be5 {[%clk 0:00:12]} 46. Rd3+ {[%clk 0:00:13]}  Kc7 {[%clk 0:00:12]} 47. Rd5 {[%clk 0:00:12]}  Bd6 {[%clk 0:00:12]} 48. Rg5 {[%clk 0:00:12]}  Re5 {[%clk 0:00:08]} 49. Rg7+ {[%clk 0:00:11]}  Re7 {[%clk 0:00:08]} 50. Rg8 {[%clk 0:00:10]}  Re6 {[%clk 0:00:08]} 51. Rc8+ {[%clk 0:00:08]}  Kb6 {[%clk 0:00:07]} 52. Kh3 {[%clk 0:00:07]}  Rh6+ {[%clk 0:00:06]} 53. Kg4 {[%clk 0:00:06]}  Rg6+ {[%clk 0:00:06]} 54. Kf5 {[%clk 0:00:07]}  Rxg3 {[%clk 0:00:06]} 55. Ke6 {[%clk 0:00:07]}  Bc7 {[%clk 0:00:05]} 56. Ra8 {[%clk 0:00:07]}  Re3+ {[%clk 0:00:05]} 57. Kd5 {[%clk 0:00:06]}  Rd3+ {[%clk 0:00:05]} 58. Kc4 {[%clk 0:00:06]}  Ra3 {[%clk 0:00:01]} 59. Rxa3 {[%clk 0:00:06]} 1-0


[Site "https://www.chess.com"]

[Event "Titled Tuesday Blitz August 10 2021"]
[White "Ibarra Jerez, Jose Carlos"]
[Black "Timmermans, Mark"]
[WhiteFideId "2226332"]
[BlackFideId "1026399"]
[WhiteElo "2602"]
[BlackElo "2460"]
[Result "1-0"]
[Round "09"]
[TimeControl "180+1"]
[Date "2021.08.10"]
[WhiteClock "0:00:17"]
[BlackClock "0:00:20"]

1. d4 {[%clk 0:03:00]}  Nf6 {[%clk 0:02:59]} 2. Bf4 {[%clk 0:02:57]}  e6 {[%clk 0:02:59]} 3. e3 {[%clk 0:02:56]}  d5 {[%clk 0:02:59]} 4. Nd2 {[%clk 0:02:55]}  Bd6 {[%clk 0:03:00]} 5. Ngf3 {[%clk 0:02:52]}  O-O {[%clk 0:02:58]} 6. Bd3 {[%clk 0:02:51]}  b6 {[%clk 0:02:57]} 7. Ne5 {[%clk 0:02:49]}  Bb7 {[%clk 0:02:57]} 8. Qf3 {[%clk 0:02:48]}  Nbd7 {[%clk 0:02:52]} 9. Qh3 {[%clk 0:02:37]}  a5 {[%clk 0:02:12]} 10. Bg5 {[%clk 0:02:25]}  Bxe5 {[%clk 0:02:08]} 11. Bxh7+ {[%clk 0:02:14]}  Nxh7 {[%clk 0:01:55]} 12. Bxd8 {[%clk 0:02:13]}  Rfxd8 {[%clk 0:01:56]} 13. dxe5 {[%clk 0:02:12]}  Ba6 {[%clk 0:01:56]} 14. f4 {[%clk 0:02:08]}  Nc5 {[%clk 0:01:48]} 15. Qf3 {[%clk 0:01:59]}  Rd7 {[%clk 0:01:32]} 16. O-O-O {[%clk 0:01:37]}  Rad8 {[%clk 0:01:26]} 17. e4 {[%clk 0:01:29]}  dxe4 {[%clk 0:01:22]} 18. Qe3 {[%clk 0:01:02]}  Bb7 {[%clk 0:00:45]} 19. Nb3 {[%clk 0:00:58]}  Nxb3+ {[%clk 0:00:45]} 20. axb3 {[%clk 0:00:57]}  Rd5 {[%clk 0:00:45]} 21. Rxd5 {[%clk 0:00:54]}  Rxd5 {[%clk 0:00:46]} 22. Rd1 {[%clk 0:00:53]}  Nf8 {[%clk 0:00:43]} 23. Rxd5 {[%clk 0:00:46]}  Bxd5 {[%clk 0:00:44]} 24. c4 {[%clk 0:00:31]}  Bc6 {[%clk 0:00:35]} 25. b4 {[%clk 0:00:27]}  axb4 {[%clk 0:00:34]} 26. Qd2 {[%clk 0:00:27]}  Nd7 {[%clk 0:00:33]} 27. Qxb4 {[%clk 0:00:27]}  Nc5 {[%clk 0:00:34]} 28. Kd2 {[%clk 0:00:24]}  e3+ {[%clk 0:00:31]} 29. Kxe3 {[%clk 0:00:22]}  Bxg2 {[%clk 0:00:32]} 30. Qd2 {[%clk 0:00:20]}  Bh3 {[%clk 0:00:23]} 31. Qd8+ {[%clk 0:00:19]}  Kh7 {[%clk 0:00:24]} 32. Qh4+ {[%clk 0:00:19]}  Kg8 {[%clk 0:00:24]} 33. Qxh3 {[%clk 0:00:19]}  g5 {[%clk 0:00:20]} 34. Qg4 {[%clk 0:00:17]} 1-0


[Site "https://www.chess.com"]

[Event "Titled Tuesday Blitz August 10 2021"]
[White "Ibrahimli, Murad"]
[Black "Costachi, Mihnea"]
[WhiteFideId "13410229"]
[BlackFideId "1217518"]
[WhiteElo "2109"]
[BlackElo "2482"]
[Result "1-0"]
[Round "09"]
[TimeControl "180+1"]
[Date "2021.08.10"]
[WhiteClock "0:00:12"]
[BlackClock "0:00:14"]

1. Nf3 {[%clk 0:03:00]}  Nf6 {[%clk 0:02:59]} 2. c4 {[%clk 0:02:57]}  g6 {[%clk 0:02:58]} 3. Nc3 {[%clk 0:02:55]}  Bg7 {[%clk 0:02:59]} 4. e4 {[%clk 0:02:55]}  O-O {[%clk 0:03:00]} 5. d4 {[%clk 0:02:54]}  d6 {[%clk 0:03:00]} 6. Be2 {[%clk 0:02:53]}  Na6 {[%clk 0:03:00]} 7. O-O {[%clk 0:02:52]}  e5 {[%clk 0:03:01]} 8. dxe5 {[%clk 0:02:37]}  dxe5 {[%clk 0:02:59]} 9. Bg5 {[%clk 0:02:37]}  c6 {[%clk 0:02:55]} 10. Qxd8 {[%clk 0:02:22]}  Rxd8 {[%clk 0:02:54]} 11. Nxe5 {[%clk 0:02:22]}  Re8 {[%clk 0:02:49]} 12. f4 {[%clk 0:02:17]}  Nc5 {[%clk 0:02:49]} 13. Bf3 {[%clk 0:02:09]}  Nfxe4 {[%clk 0:02:47]} 14. Nxe4 {[%clk 0:01:43]}  Nxe4 {[%clk 0:02:46]} 15. Bxe4 {[%clk 0:01:44]}  f6 {[%clk 0:02:47]} 16. Bxf6 {[%clk 0:01:18]}  Bxf6 {[%clk 0:02:47]} 17. Rad1 {[%clk 0:01:18]}  Be6 {[%clk 0:02:44]} 18. b3 {[%clk 0:01:16]}  Bxe5 {[%clk 0:02:35]} 19. fxe5 {[%clk 0:01:16]}  Bg4 {[%clk 0:02:36]} 20. Rd6 {[%clk 0:01:10]}  Rxe5 {[%clk 0:02:36]} 21. Bxg6 {[%clk 0:01:10]}  Be2 {[%clk 0:01:41]} 22. Bf7+ {[%clk 0:01:08]}  Kf8 {[%clk 0:01:38]} 23. Rf4 {[%clk 0:01:05]}  Ke7 {[%clk 0:01:36]} 24. Rh6 {[%clk 0:01:03]}  Bd3 {[%clk 0:01:37]} 25. Bh5 {[%clk 0:00:48]}  Rf8 {[%clk 0:01:16]} 26. Rxf8 {[%clk 0:00:44]}  Kxf8 {[%clk 0:01:15]} 27. Bf3 {[%clk 0:00:31]}  Re1+ {[%clk 0:01:06]} 28. Kf2 {[%clk 0:00:31]}  Ra1 {[%clk 0:01:07]} 29. Rd6 {[%clk 0:00:29]}  Rxa2+ {[%clk 0:01:07]} 30. Kg3 {[%clk 0:00:30]}  Bc2 {[%clk 0:01:00]} 31. Rd7 {[%clk 0:00:29]}  Bxb3 {[%clk 0:01:00]} 32. Rxb7 {[%clk 0:00:29]}  Bxc4 {[%clk 0:01:00]} 33. Bxc6 {[%clk 0:00:26]}  Bd3 {[%clk 0:00:53]} 34. Bd5 {[%clk 0:00:22]}  Ra3 {[%clk 0:00:53]} 35. Kf4 {[%clk 0:00:21]}  Bg6 {[%clk 0:00:53]} 36. g4 {[%clk 0:00:19]}  a5 {[%clk 0:00:49]} 37. h4 {[%clk 0:00:19]}  Rd3 {[%clk 0:00:44]} 38. Be6 {[%clk 0:00:17]}  Rd1 {[%clk 0:00:36]} 39. h5 {[%clk 0:00:17]}  Bc2 {[%clk 0:00:35]} 40. Ra7 {[%clk 0:00:16]}  a4 {[%clk 0:00:34]} 41. Ke5 {[%clk 0:00:16]}  Ke8 {[%clk 0:00:24]} 42. Kf6 {[%clk 0:00:15]}  Rf1+ {[%clk 0:00:23]} 43. Bf5 {[%clk 0:00:15]}  Bxf5 {[%clk 0:00:16]} 44. gxf5 {[%clk 0:00:15]}  Ra1 {[%clk 0:00:15]} 45. Rxh7 {[%clk 0:00:14]}  a3 {[%clk 0:00:14]} 46. Ra7 {[%clk 0:00:14]}  a2 {[%clk 0:00:15]} 47. h6 {[%clk 0:00:14]}  Rh1 {[%clk 0:00:15]} 48. Ra8+ {[%clk 0:00:12]}  Kd7 {[%clk 0:00:14]} 49. Rxa2 {[%clk 0:00:13]}  Rxh6+ {[%clk 0:00:14]} 50. Kg7 {[%clk 0:00:13]}  Rh1 {[%clk 0:00:15]} 51. Re2 {[%clk 0:00:12]}  Rg1+ {[%clk 0:00:14]} 52. Kf7 {[%clk 0:00:12]}  Rg2 {[%clk 0:00:14]} 53. Rxg2 {[%clk 0:00:12]} 1-0


[Site "https://www.chess.com"]